bitfinex/quotes_SOLUSD_20250609
["timestamp","ask_amount","ask_price","bid_price","bid_amount"]
[1749502387683,18.94330934,156.51,156.5,128.64]
[1749502387889,23.73114404,156.51,156.5,128.64]
[1749502389988,23.73114404,156.51,156.5,38.74]
[1749502399418,23.73114404,156.51,156.5,128.64]
[1749502406488,11.17720279,156.51,156.5,128.64]
[1749502406892,23.73114404,156.51,156.5,128.64]
[1749502409623,23.73114404,156.51,156.5,128.58]
[1749502411504,23.73114404,156.51,156.5,38.68]
[1749502417125,11.17720279,156.51,156.5,38.68]
[1749502417321,11.17720279,156.51,156.5,128.58]
[1749502418702,23.73114404,156.51,156.5,128.58]
[1749502424435,11.17720279,156.51,156.5,128.58]
[1749502424737,23.73114404,156.51,156.5,128.58]
[1749502427108,4.7878347,156.51,156.5,128.58]
[1749502427314,11.17720279,156.51,156.5,128.58]
[1749502428426,6.38936809,156.51,156.5,128.58]
[1749502436727,6.38855171,156.53,156.5,128.58]
[1749502436935,6.38829532,156.54,156.51,12.55394125]
[1749502437137,4.7854031,156.53,156.52,38.7]
[1749502438124,18.94185848,156.55,156.52,38.7]
[1749502438444,4.78459608,156.54,156.52,38.7]
[1749502438628,18.94185848,156.55,156.52,38.7]
[1749502440844,18.94185848,156.55,156.52,128.6]
[1749502443734,5.97619059,156.59,156.53,12.55394125]
[1749502443949,12.55394125,156.57,156.53,112.33394125]
[1749502444148,4.78003901,156.56,156.53,112.33394125]
[1749502444349,6.38732754,156.56,156.53,112.33394125]
[1749502445350,11.16531465,156.56,156.53,112.33394125]
[1749502445933,4.77798711,156.56,156.53,112.33394125]
[1749502446137,4.77798711,156.56,156.54,12.55394125]
[1749502446333,11.16531465,156.56,156.55,38.72]
[1749502446660,4.77798711,156.56,156.55,38.72]
[1749502446823,4.77798711,156.57,156.55,38.72]
[1749502447534,6.38675701,156.58,156.55,51.27394125]
[1749502447742,11.1620611,156.58,156.55,51.27394125]
[1749502449729,11.1620611,156.58,156.55,141.17394125]
[1749502450050,23.71600235,156.58,156.55,128.62]
[1749502450230,18.94069826,156.58,156.55,128.62]
[1749502450432,23.71600235,156.58,156.55,128.62]
[1749502450632,18.94069826,156.58,156.55,128.62]
[1749502450945,23.71600235,156.58,156.55,128.62]
[1749502451152,18.94069826,156.58,156.55,128.62]
[1749502451351,23.71600235,156.58,156.55,128.62]
[1749502451549,18.94069826,156.58,156.55,128.62]
[1749502451742,23.71600235,156.58,156.55,128.62]
[1749502451940,18.94069826,156.58,156.55,128.62]
[1749502452147,23.71600235,156.58,156.55,128.62]
[1749502452351,18.94069826,156.58,156.55,128.62]
[1749502458594,6.38675701,156.58,156.55,128.62]
[1749502458875,18.94069826,156.58,156.55,128.62]
[1749502459293,6.38675701,156.58,156.55,128.62]
[1749502459460,18.94004508,156.59,156.55,128.62]
[1749502459796,12.55394125,156.58,156.55,128.62]
[1749502461175,6.38691958,156.57,156.55,128.62]
[1749502462274,18.94004508,156.59,156.55,128.62]
[1749502462878,6.38610383,156.59,156.55,128.62]
[1749502463072,11.1611756,156.6,156.56,12.55394125]
[1749502463386,6.38587151,156.6,156.56,12.55394125]
[1749502463568,18.93981276,156.6,156.56,12.55394125]
[1749502465074,6.38587151,156.6,156.57,12.55394125]
[1749502465276,6.38587151,156.6,156.58,38.76]
[1749502468393,4.77530409,156.61,156.58,141.21394125]
[1749502468394,6.38543107,156.61,156.58,141.21394125]
[1749502468566,11.16073516,156.61,156.58,128.66]
[1749502468971,23.71467641,156.61,156.58,128.66]
[1749502469169,12.55394125,156.6,156.58,128.66]
[1749502469893,12.55394125,156.59,156.58,128.66]
[1749502470099,18.94004508,156.59,156.58,89.9]
[1749502470301,23.71534917,156.59,156.58,89.9]
[1749502470479,18.94004508,156.59,156.58,89.9]
[1749502470664,23.71534917,156.59,156.58,89.9]
[1749502470865,18.94004508,156.59,156.58,89.9]
[1749502471098,23.71534917,156.59,156.58,89.9]
[1749502471295,18.94004508,156.59,156.58,89.9]
[1749502471506,23.71534917,156.59,156.58,89.9]
[1749502473382,39.68060876,156.59,156.56,128.64]
[1749502473704,4.77530409,156.58,156.56,128.64]
[1749502474669,6.38691958,156.57,156.56,128.64]
[1749502474981,18.94086083,156.57,156.56,128.64]
[1749502477811,23.71515732,156.57,156.56,128.64]
[1749502477988,18.94086083,156.57,156.56,128.64]
[1749502478189,6.38691958,156.57,156.56,128.64]
[1749502478699,11.1620601,156.57,156.56,128.66]
[1749502478897,23.71600135,156.57,156.56,128.66]
[1749502479209,18.94086083,156.57,156.56,128.66]
[1749502479605,6.38691958,156.57,156.56,128.66]
[1749502480103,11.16392372,156.57,156.56,128.66]
[1749502480281,6.38691958,156.57,156.56,128.66]
[1749502480837,11.16402642,156.57,156.56,128.66]
[1749502482591,23.71796767,156.57,156.56,128.66]
[1749502483906,11.16402642,156.57,156.56,128.66]
[1749502485210,4.77710684,156.57,156.56,128.66]
[1749502485415,4.77710684,156.58,156.56,141.21394125]
[1749502485719,18.93922954,156.61,156.57,12.55394125]
[1749502485924,4.78181205,156.6,156.58,51.37394125]
[1749502486110,4.78181205,156.59,156.58,51.37394125]
[1749502486410,4.78181205,156.59,156.58,38.82]
[1749502487511,17.3357533,156.59,156.58,38.82]
[1749502488093,23.72185713,156.59,156.58,38.82]
[1749502489608,11.16791588,156.59,156.58,38.82]
[1749502489990,23.72185713,156.59,156.58,38.82]
[1749502490907,23.72296658,156.59,156.58,38.82]
[1749502491114,23.72296658,156.59,156.58,128.72]
[1749502497714,23.72296658,156.59,156.58,89.9]
[1749502497915,23.72296658,156.59,156.58,128.72]
[1749502498416,23.72296658,156.59,156.58,89.9]
[1749502500517,23.72296658,156.59,156.57,38.82]
[1749502500724,17.33686275,156.58,156.57,38.82]
[1749502501515,23.72337443,156.58,156.57,38.82]
[1749502504430,23.72337443,156.58,156.55,38.8]
[1749502504609,4.7829215,156.57,156.55,38.8]
[1749502504810,4.7829215,156.56,156.55,38.8]
[1749502505008,4.7829215,156.56,156.55,128.7]
[1749502505621,17.33686275,156.56,156.55,89.9]
[1749502506613,23.72419029,156.56,156.55,89.9]
[1749502507811,11.17024904,156.56,156.55,89.9]
[1749502507997,23.72419029,156.56,156.55,89.9]
[1749502511732,11.17024904,156.56,156.55,89.9]
[1749502512231,4.7829215,156.56,156.55,89.9]
[1749502512402,11.17024904,156.56,156.55,89.9]
[1749502512604,23.72419029,156.56,156.55,89.9]
[1749502513832,23.72419029,156.56,156.55,128.88]
[1749502514914,23.72419029,156.56,156.55,38.98]
[1749502515940,11.17024904,156.56,156.55,38.98]
[1749502516138,4.7829215,156.56,156.55,51.53394125]
[1749502516342,6.38703309,156.57,156.55,53.12494125]
[1749502517217,6.38703309,156.57,156.55,60.15335668]
[1749502517430,6.38703309,156.57,156.55,40.571]
[1749502517937,6.38651168,156.58,156.55,40.571]
[1749502519527,6.38569604,156.6,156.56,19.58235668]
[1749502519739,15.96382494,156.61,156.58,6.1013]
[1749502519740,4.78105726,156.59,156.58,6.1013]
[1749502519936,6.38536506,156.61,156.58,74.82365668]
[1749502520151,6.38504744,156.62,156.59,19.58235668]
[1749502520618,11.16352414,156.62,156.59,19.58235668]
[1749502521121,6.38504744,156.62,156.59,19.58235668]
[1749502521721,22.34137622,156.66,156.59,19.58235668]
[1749502522038,19.58235668,156.63,156.59,109.48235668]
[1749502522425,24.35753584,156.63,156.59,109.48235668]
[1749502522632,19.58235668,156.63,156.59,109.48235668]
[1749502523027,24.35753584,156.63,156.59,109.48235668]
[1749502523242,19.58235668,156.63,156.59,109.48235668]
[1749502523745,24.35753584,156.63,156.59,109.48235668]
[1749502523931,6.3848806,156.62,156.59,109.48235668]
[1749502524716,6.3848806,156.62,156.59,89.9]
[1749502524939,25.96723728,156.62,156.59,89.9]
[1749502525129,19.58235668,156.61,156.59,89.9]
[1749502525942,6.38569604,156.6,156.59,89.9]
[1749502527653,6.38528829,156.61,156.59,109.48235668]
[1749502528154,6.38528829,156.61,156.59,89.9]
[1749502529035,19.58235668,156.62,156.59,89.9]
[1749502531248,6.38528829,156.61,156.59,89.9]
[1749502536533,6.3848806,156.62,156.59,89.9]
[1749502536971,19.58235668,156.6,156.59,89.9]
[1749502537132,19.58235668,156.6,156.58,10.1]
[1749502537133,19.58235668,156.6,156.58,89.9]
[1749502537330,19.58235668,156.59,156.58,89.9]
[1749502537937,24.35753584,156.59,156.58,89.9]
[1749502538148,19.58235668,156.59,156.58,89.9]
[1749502538468,25.96846051,156.59,156.58,89.9]
[1749502540039,6.38610383,156.59,156.58,89.9]
[1749502540900,25.96805272,156.6,156.58,89.9]
[1749502541064,25.96805272,156.6,156.59,39.02]
[1749502541557,25.96805272,156.6,156.59,128.92]
[1749502543760,19.58235668,156.6,156.59,128.92]
[1749502544965,25.96805272,156.6,156.59,128.92]
[1749502548478,6.38569604,156.6,156.59,128.92]
[1749502558849,6.38528829,156.61,156.59,128.92]
[1749502559253,11.15870085,156.61,156.59,128.92]
[1749502559749,6.38528829,156.61,156.59,128.92]
[1749502559950,11.16033624,156.61,156.59,128.92]
[1749502560167,11.16172933,156.61,156.59,128.92]
[1749502560358,6.38528829,156.61,156.59,128.92]
[1749502560766,11.16172933,156.61,156.59,128.92]
[1749502561277,6.38528829,156.61,156.59,128.92]
[1749502561478,30.74427483,156.61,156.59,128.92]
[1749502561666,24.35947221,156.6,156.59,128.92]
[1749502561866,24.35947221,156.6,156.59,89.9]
[1749502562063,24.35947221,156.6,156.59,128.86]
[1749502562261,4.77711553,156.6,156.59,89.9]
[1749502562455,24.35947221,156.6,156.59,89.9]
[1749502562656,4.77711553,156.6,156.59,89.9]
[1749502562981,24.35947221,156.6,156.59,89.9]
[1749502563484,30.74516825,156.6,156.59,89.9]
[1749502565169,30.74516825,156.6,156.58,39.0]
[1749502565383,24.35947221,156.59,156.58,39.0]
[1749502565762,24.35947221,156.59,156.57,38.98]
[1749502566072,4.77711553,156.58,156.57,38.98]
[1749502566385,4.77711553,156.58,156.57,128.88]
[1749502567073,11.16362721,156.58,156.57,128.88]
[1749502567381,6.38651168,156.58,156.57,128.88]
[1749502568366,25.96886836,156.58,156.57,128.88]
[1749502570196,30.74666649,156.58,156.57,38.98]
[1749502571164,25.96886836,156.58,156.57,38.98]
[1749502571364,30.74666649,156.58,156.57,38.98]
[1749502571589,25.96886836,156.58,156.57,38.98]
[1749502571774,6.38651168,156.58,156.57,38.98]
[1749502573185,4.77719342,156.58,156.57,38.98]
[1749502573392,19.58235668,156.59,156.57,38.98]
[1749502574073,6.38651168,156.58,156.57,38.98]
[1749502575093,6.38651168,156.58,156.57,39.0]
[1749502576568,6.38615269,156.59,156.57,58.58235668]
[1749502576879,19.58235668,156.63,156.58,19.58235668]
[1749502577079,4.77701805,156.62,156.59,19.58235668]
[1749502577393,19.58235668,156.63,156.6,38.98]
[1749502577566,4.776899,156.62,156.61,19.58235668]
[1749502577763,4.776899,156.63,156.61,19.58235668]
[1749502577993,25.96642205,156.64,156.6,148.46235668]
[1749502578176,6.3848806,156.62,156.6,148.46235668]
[1749502578380,6.3848806,156.62,156.6,128.88]
[1749502580072,11.16104355,156.63,156.61,19.58235668]
[1749502580267,11.16104355,156.63,156.61,89.9]
[1749502580268,6.38460062,156.63,156.61,89.9]
[1749502583378,25.9669573,156.63,156.61,89.9]
[1749502583868,30.74098543,156.63,156.61,89.9]
[1749502584074,25.9669573,156.63,156.61,89.9]
[1749502584281,30.74098543,156.63,156.61,89.9]
[1749502584573,25.9669573,156.63,156.61,89.9]
[1749502590497,19.58235668,156.63,156.62,38.98]
[1749502590804,19.58235668,156.63,156.62,128.88]
[1749502592485,25.96682964,156.63,156.62,128.88]
[1749502593284,18.91063592,156.63,156.62,128.88]
[1749502594883,18.91063592,156.63,156.62,128.86]
[1749502596306,18.91063592,156.63,156.62,89.9]
[1749502596509,39.6436624,156.63,156.58,99.96]
[1749502596709,27.11749944,156.63,156.59,38.98]
[1749502597613,27.11749944,156.63,156.58,10.06]
[1749502597614,59.03986424,156.63,156.58,10.06]
[1749502597825,12.52616296,156.59,156.58,49.02]
[1749502598020,12.52616296,156.59,156.58,128.86]
[1749502598190,4.77184408,156.62,156.58,128.86]
[1749502598393,12.52616296,156.59,156.58,128.86]
[1749502599593,18.91226679,156.59,156.58,128.86]
[1749502601227,25.96877331,156.59,156.58,128.86]
[1749502605220,25.96877331,156.59,156.58,89.9]
[1749502605422,25.96877331,156.59,156.58,128.84]
[1749502607395,6.38610383,156.59,156.58,128.84]
[1749502607722,25.96877331,156.59,156.58,128.84]
[1749502611626,25.96877331,156.59,156.58,89.9]
[1749502611923,25.96877331,156.59,156.58,128.8]
[1749502618025,25.96877331,156.59,156.58,128.78]
[1749502621338,18.92002014,156.59,156.58,38.88]
[1749502622723,6.38610383,156.59,156.58,38.88]
[1749502623453,18.92002014,156.59,156.58,38.88]
[1749502626940,18.92002014,156.59,156.55,96.385]
[1749502627138,12.53391631,156.58,156.56,38.84]
[1749502627347,12.53391631,156.58,156.56,128.74]
[1749502627637,18.92002014,156.59,156.56,128.74]
[1749502628225,12.53391631,156.59,156.56,128.74]
[1749502628425,17.30740486,156.6,156.56,128.74]
[1749502628823,12.53391631,156.59,156.56,128.74]
[1749502631245,6.38651168,156.58,156.56,128.74]
[1749502641061,12.53391631,156.57,156.56,128.74]
[1749502641350,12.53391631,156.58,156.56,128.74]
[1749502642651,4.78806544,156.57,156.56,128.74]
[1749502643048,11.17498502,156.57,156.56,128.74]
[1749502643354,11.17489572,156.57,156.56,128.74]
[1749502643541,6.38691958,156.57,156.56,128.74]
[1749502645452,6.38651168,156.58,156.56,128.74]
[1749502653736,6.38610383,156.59,156.56,128.74]
[1749502653965,4.78779872,156.58,156.56,128.74]
[1749502654143,6.38610383,156.59,156.56,128.74]
[1749502654460,4.78777948,156.58,156.56,128.74]
[1749502654759,6.38610383,156.59,156.56,128.74]
[1749502654946,11.17460356,156.58,156.56,128.74]
[1749502655145,6.38671554,156.58,156.56,128.74]
[1749502655532,6.38671554,156.58,156.56,141.27391631]
[1749502656044,5.97497692,156.62,156.57,12.53391631]
[1749502656254,4.7875977,156.61,156.6,12.53391631]
[1749502656446,4.7875977,156.61,156.6,51.31391631]
[1749502656962,4.7875977,156.61,156.6,141.21391631]
[1749502657151,6.38491632,156.62,156.6,141.21391631]
[1749502657346,6.38491632,156.62,156.6,128.68]
[1749502661964,15.96017476,156.64,156.6,128.68]
[1749502661965,12.53391631,156.64,156.6,128.68]
[1749502662143,4.77775598,156.63,156.6,128.68]
[1749502662340,12.53391631,156.64,156.6,128.68]
[1749502662539,4.77689223,156.63,156.6,128.68]
[1749502662741,12.53391631,156.64,156.6,128.68]
[1749502662940,4.77683435,156.63,156.6,128.68]
[1749502663135,12.53391631,156.64,156.6,128.68]
[1749502663341,6.3848806,156.62,156.6,128.68]
[1749502664465,6.38447296,156.63,156.6,128.68]
[1749502668963,18.91838927,156.63,156.6,128.68]
[1749502671446,23.6912397,156.63,156.6,128.68]
[1749502671649,18.91838927,156.63,156.6,128.68]
[1749502672052,23.69107191,156.63,156.6,128.68]
[1749502672253,18.91838927,156.63,156.6,128.68]
[1749502672755,23.69107191,156.63,156.6,128.68]
[1749502673055,18.91838927,156.63,156.6,128.68]
[1749502673455,23.69107191,156.63,156.6,128.68]
[1749502673656,18.91838927,156.63,156.6,128.68]
[1749502674055,23.69107191,156.63,156.6,128.68]
[1749502674255,18.91838927,156.63,156.6,128.68]
[1749502674657,23.69107191,156.63,156.6,128.68]
[1749502674864,18.91838927,156.63,156.6,128.68]
[1749502675377,23.69107191,156.63,156.6,128.68]
[1749502675578,18.91838927,156.63,156.6,128.68]
[1749502676069,23.69107191,156.63,156.6,128.68]
[1749502676276,18.91838927,156.63,156.6,128.68]
[1749502676652,23.69107191,156.63,156.6,128.68]
[1749502676849,18.91838927,156.63,156.6,128.68]
[1749502677270,23.69107191,156.63,156.6,128.68]
[1749502677481,18.91838927,156.63,156.6,128.68]
[1749502677862,23.69107191,156.63,156.6,128.68]
[1749502678061,18.91838927,156.63,156.6,128.68]
[1749502678462,23.69107191,156.63,156.6,128.68]
[1749502678661,18.91838927,156.63,156.6,128.68]
[1749502678868,23.69107191,156.63,156.6,128.68]
[1749502679079,18.91838927,156.63,156.6,128.68]
[1749502679282,23.69107191,156.63,156.6,128.68]
[1749502679490,18.91838927,156.63,156.6,128.68]
[1749502679667,23.69107191,156.63,156.6,128.68]
[1749502679874,18.91838927,156.63,156.6,128.68]
[1749502680172,23.69107191,156.63,156.6,128.68]
[1749502680376,18.91838927,156.63,156.6,128.68]
[1749502680589,23.69107191,156.63,156.6,128.68]
[1749502680767,18.91838927,156.63,156.6,128.68]
[1749502680967,23.69107191,156.63,156.6,128.68]
[1749502681179,18.91838927,156.63,156.6,128.68]
[1749502681376,23.69107191,156.63,156.6,128.68]
[1749502681695,18.91838927,156.63,156.6,128.68]
[1749502681895,23.69107191,156.63,156.6,128.68]
[1749502682188,18.91838927,156.63,156.6,128.68]
[1749502682392,23.69107191,156.63,156.6,128.68]
[1749502682692,18.91838927,156.63,156.6,128.68]
[1749502682875,23.69107191,156.63,156.6,128.68]
[1749502683059,18.91838927,156.63,156.6,128.68]
[1749502683266,23.69107191,156.63,156.6,128.68]
[1749502683513,18.91838927,156.63,156.6,128.68]
[1749502683685,23.69107191,156.63,156.6,128.68]
[1749502683866,18.91838927,156.63,156.6,128.68]
[1749502684066,23.69107191,156.63,156.6,128.68]
[1749502684379,18.91838927,156.63,156.6,128.68]
[1749502684590,23.69107191,156.63,156.6,128.68]
[1749502684766,18.91838927,156.63,156.6,128.68]
[1749502684968,23.69107191,156.63,156.6,128.68]
[1749502685168,18.91838927,156.63,156.6,128.68]
[1749502685367,23.69107191,156.63,156.6,128.68]
[1749502685585,18.91838927,156.63,156.6,128.68]
[1749502685787,23.69107191,156.63,156.6,128.68]
[1749502686089,18.91838927,156.63,156.6,128.68]
[1749502692674,6.38447296,156.63,156.6,141.21391631]
[1749502695172,6.38528829,156.61,156.6,141.21391631]
[1749502696183,6.3848806,156.62,156.6,141.21391631]
[1749502696703,15.96015382,156.65,156.61,12.53391631]
[1749502696704,6.38459447,156.63,156.61,12.53391631]
[1749502696995,6.38418233,156.64,156.61,102.43391631]
[1749502697292,4.78009993,156.63,156.61,102.43391631]
[1749502697500,6.38418233,156.64,156.61,102.43391631]
[1749502697794,4.78008036,156.63,156.61,102.43391631]
[1749502697967,6.38418233,156.64,156.61,102.43391631]
[1749502698167,4.78109855,156.63,156.61,102.43391631]
[1749502698375,6.38418233,156.64,156.61,102.43391631]
[1749502698587,4.78110885,156.63,156.61,102.43391631]
[1749502698780,6.38418233,156.64,156.61,102.43391631]
[1749502699082,4.78106535,156.63,156.61,102.43391631]
[1749502699280,6.38418233,156.64,156.61,102.43391631]
[1749502699486,4.78233379,156.63,156.61,102.43391631]
[1749502699794,6.38418233,156.64,156.61,102.43391631]
[1749502700109,4.78226796,156.63,156.61,102.43391631]
[1749502700399,6.38365783,156.65,156.62,12.53391631]
[1749502700604,4.7841273,156.64,156.63,38.7]
[1749502701288,4.7841273,156.64,156.63,128.6]
[1749502703995,4.7841273,156.64,156.63,141.13391631]
[1749502704376,23.90863615,156.69,156.63,141.13391631]
[1749502704377,6.38243553,156.68,156.63,141.13391631]
[1749502704579,4.78402336,156.67,156.65,12.53391631]
[1749502704777,6.38243553,156.68,156.66,38.72]
[1749502705089,4.78262648,156.67,156.66,38.72]
[1749502705489,11.16546939,156.67,156.66,38.72]
[1749502707781,39.65649299,156.67,156.6,11.4561]
[1749502708084,12.53391631,156.64,156.61,38.76]
[1749502708277,12.53391631,156.64,156.61,89.9]
[1749502708477,12.53391631,156.64,156.62,38.76]
[1749502708679,12.53391631,156.64,156.6,11.4561]
[1749502708680,12.53391631,156.63,156.6,101.3561]
[1749502708905,12.53391631,156.63,156.61,38.76]
[1749502710104,6.3848806,156.62,156.61,38.76]
[1749502710706,11.16496677,156.62,156.61,38.76]
[1749502711080,6.3848806,156.62,156.61,38.76]
[1749502711807,11.16498418,156.62,156.61,38.76]
[1749502712002,6.3848806,156.62,156.61,38.76]
[1749502714385,11.16505768,156.62,156.61,38.76]
[1749502715410,6.3848806,156.62,156.61,38.76]
[1749502715992,6.3848806,156.62,156.61,128.66]
[1749502716910,18.91879691,156.62,156.61,128.66]
[1749502717793,23.69911234,156.62,156.61,128.66]
[1749502718111,23.69911234,156.62,156.61,89.9]
[1749502718285,23.69911234,156.62,156.61,128.64]
[1749502719284,23.69911234,156.62,156.61,89.9]
[1749502722117,23.69911234,156.62,156.59,128.72]
[1749502722301,17.31423174,156.61,156.59,128.72]
[1749502722501,12.53391631,156.61,156.59,128.72]
[1749502723205,6.38569604,156.6,156.59,128.72]
[1749502725815,18.91961235,156.6,156.59,128.74]
[1749502730116,18.91961235,156.6,156.59,89.9]
[1749502730420,18.91961235,156.6,156.59,128.72]
[1749502730796,34.88385245,156.6,156.57,89.9]
[1749502730997,12.53391631,156.58,156.57,89.9]
[1749502731225,6.38569604,156.6,156.57,128.74]
[1749502731521,6.38569604,156.6,156.57,142.91591631]
[1749502732221,6.38528829,156.61,156.57,142.91591631]
[1749502732924,18.9192046,156.61,156.57,142.91591631]
[1749502733323,12.53391631,156.6,156.57,130.382]
[1749502734023,6.38528829,156.61,156.57,130.382]
[1749502734199,6.38610383,156.59,156.57,130.382]
[1749502738826,6.38569604,156.6,156.57,140.382]
[1749502739028,4.77556275,156.64,156.59,12.53391631]
[1749502739233,4.77556275,156.63,156.61,12.53391631]
[1749502739404,17.3091934,156.66,156.61,12.53391631]
[1749502739730,4.77527709,156.65,156.61,12.53391631]
[1749502739917,4.77527709,156.64,156.61,12.53391631]
[1749502740112,12.53391631,156.66,156.61,12.53391631]
[1749502740316,17.30919589,156.65,156.61,12.53391631]
[1749502740517,4.77527958,156.64,156.61,12.53391631]
[1749502740718,6.38406537,156.64,156.61,12.53391631]
[1749502747714,6.38364587,156.66,156.61,12.53391631]
[1749502747915,6.38364587,156.66,156.62,12.53391631]
[1749502748138,6.38364587,156.66,156.62,24.15891631]
[1749502748333,11.1568849,156.66,156.62,24.15891631]
[1749502748523,11.1568849,156.66,156.62,114.05891631]
[1749502748937,6.38364587,156.66,156.62,114.05891631]
[1749502749615,22.33716529,156.69,156.62,114.05891631]
[1749502749810,12.53391631,156.67,156.63,12.53391631]
[1749502750013,12.53391631,156.67,156.64,38.88]
[1749502750609,12.53391631,156.68,156.64,128.78]
[1749502750835,4.77271924,156.67,156.64,128.78]
[1749502751066,12.53391631,156.68,156.64,128.78]
[1749502751245,4.77206476,156.67,156.64,128.78]
[1749502751424,4.77206476,156.67,156.64,141.31391631]
[1749502751737,11.15485171,156.68,156.65,12.53391631]
[1749502751946,4.77206476,156.67,156.65,12.53391631]
[1749502752344,11.15485171,156.68,156.65,12.53391631]
[1749502752530,6.38278695,156.68,156.65,12.53391631]
[1749502753131,4.7706171,156.68,156.65,12.53391631]
[1749502753333,6.3820282,156.69,156.65,12.53391631]
[1749502753531,4.77060944,156.68,156.65,12.53391631]
[1749502753735,6.3820282,156.69,156.65,12.53391631]
[1749502753947,4.7704291,156.68,156.65,12.53391631]
[1749502754239,11.15115871,156.69,156.66,12.53391631]
[1749502754444,11.15115871,156.69,156.66,102.43391631]
[1749502755014,6.3820282,156.69,156.66,102.43391631]
[1749502755628,11.14954267,156.69,156.66,102.43391631]
[1749502756249,6.3820282,156.69,156.66,102.43391631]
[1749502756432,11.1491354,156.7,156.66,102.43391631]
[1749502756739,18.91553724,156.7,156.66,102.43391631]
[1749502757045,11.1491354,156.7,156.67,12.53391631]
[1749502757250,11.1491354,156.7,156.68,38.84]
[1749502757446,6.38162093,156.7,156.68,128.74]
[1749502757648,11.1491354,156.7,156.68,128.74]
[1749502758936,6.38162093,156.7,156.68,128.74]
[1749502764733,18.9152279,156.71,156.68,128.74]
[1749502764936,13.09547125,156.73,156.7,12.53391631]
[1749502765127,8.33333333,156.73,156.72,12.53391631]
[1749502765327,8.33333333,156.73,156.72,9.98]
[1749502766158,14.71373274,156.73,156.72,9.98]
[1749502766339,14.71373274,156.73,156.71,38.86]
[1749502766758,27.24764905,156.73,156.71,38.86]
[1749502767131,14.71373274,156.73,156.71,38.86]
[1749502767455,27.24764905,156.73,156.71,38.86]
[1749502768159,14.71373274,156.73,156.71,38.86]
[1749502768459,27.24764905,156.73,156.71,38.86]
[1749502768760,12.53391631,156.72,156.71,38.86]
[1749502769055,18.91472284,156.72,156.71,38.86]
[1749502770559,18.91472284,156.72,156.68,10.48]
[1749502770857,12.53391631,156.7,156.68,40.14]
[1749502771158,18.91594451,156.69,156.68,40.14]
[1749502771532,18.91594451,156.69,156.66,17.36964256]
[1749502771740,18.91594451,156.69,156.67,40.16]
[1749502772663,12.53391631,156.68,156.66,17.36964256]
[1749502772872,12.53391631,156.68,156.66,57.52964256]
[1749502773164,12.53391631,156.68,156.66,17.36964256]
[1749502773842,6.3820282,156.69,156.66,17.36964256]
[1749502774034,12.53391631,156.68,156.66,17.36964256]
[1749502774656,18.9167583,156.68,156.66,17.36964256]
[1749502775248,18.9167583,156.68,156.66,107.26964256]
[1749502775554,18.9167583,156.68,156.66,147.42964256]
[1749502776667,6.38284199,156.68,156.66,147.42964256]
[1749502776957,18.9167583,156.68,156.66,147.42964256]
[1749502782158,6.38284199,156.68,156.66,147.42964256]
[1749502782355,12.53391631,156.68,156.66,147.42964256]
[1749502782556,12.53391631,156.67,156.66,147.42964256]
[1749502782985,11.14673649,156.69,156.66,147.42964256]
[1749502783269,12.53391631,156.68,156.66,147.42964256]
[1749502784270,6.38284291,156.67,156.66,147.32964256]
[1749502784771,18.91675922,156.67,156.66,147.32964256]
[1749502790148,18.91675922,156.67,156.66,107.26964256]
[1749502790149,23.69113496,156.67,156.66,107.26964256]
[1749502790458,23.69113496,156.67,156.66,17.36964256]
[1749502791976,18.91675922,156.67,156.66,17.36964256]
[1749502792360,23.69398956,156.67,156.66,17.36964256]
[1749502792560,18.91675922,156.67,156.66,17.36964256]
[1749502792952,23.69399166,156.67,156.66,17.36964256]
[1749502793474,11.16007535,156.67,156.66,17.36964256]
[1749502793675,23.69399166,156.67,156.66,17.36964256]
[1749502794175,18.91675922,156.67,156.66,17.36964256]
[1749502794379,23.69473552,156.67,156.66,17.36964256]
[1749502799978,29.6672059,156.67,156.66,17.36964256]
[1749502800365,23.69473552,156.67,156.66,17.36964256]